[Event "Tata Steel-A 80th"]
[Site "Wijk aan Zee"]
[Date "2018.01.26"]
[Round "11"]
[White "Anand, Viswanathan"]
[Black "Hou, Yifan"]
[Result "1-0"]
[ECO "D35"]
[WhiteElo "2767"]
[BlackElo "2680"]
[Annotator "Fernandez,D"]
[PlyCount "65"]
[EventDate "2018.01.13"]
[EventType "tourn"]
[EventRounds "13"]
[EventCountry "NED"]
[EventCategory "20"]
[SourceTitle "CBM 183"]
[Source "ChessBase"]
[SourceDate "2018.03.14"]
[SourceVersion "1"]
[SourceVersionDate "2018.03.14"]
[SourceQuality "1"]
[TimeControl "40/6000+30:20/3000+30:900+30"]

1. c4 {[%emt 0:00:00]} e6 {[%emt 0:00:07]} 2. Nc3 {[%emt 0:00:02]} d5 {[%emt 0:
00:16]} 3. d4 {[%emt 0:00:10]} Nf6 {[%emt 0:01:18]} 4. cxd5 {[%emt 0:00:19]}
Nxd5 $5 {[%emt 0:00:05] Clearly Hou Yifan was not in the mood to face a
minority attack today. Although this move has been played by a lot of good
players, it is unquestionably a secondary one. According to the current state
of top level praxis the line is playable, but very few people do it correctly,
especially from the black side!} 5. e4 {[%emt 0:00:10]} Nxc3 {[%emt 0:00:05]}
6. bxc3 {[%emt 0:00:08]} c5 {[%emt 0:00:05]} 7. Rb1 {[%emt 0:00:09]} Be7 {
[%emt 0:01:15]} 8. Nf3 {[%emt 0:00:27]} O-O {[%emt 0:00:56]} 9. Bc4 {[%emt 0:
00:11]} Nc6 {[%emt 0:02:42]} (9... Qc7 {leads us to a veritable minefield of
top games:} 10. Qe2 a6 11. O-O (11. a4 cxd4 12. cxd4 Bd7 $11 {Matlakov,
M-Aronian,L Tbilisi 2017, might objectively equalise, but that didn't stop
Black being annihlated in a 'modern attacking classic'.}) 11... b5 12. Bd3 Nd7
$1 (12... Bb7 $6 13. a4 $1 bxa4 $2 14. Bf4 {left Black virtually lost already
in Carlsen, M-So,W chess.com INT 2017}) 13. a4 (13. h4 e5 14. h5 h6 $11 {
Navara,D-Dominguez Perez,L Saint Louis 2017}) 13... bxa4 14. g3 $13 {The
position is easier to play for White, but obviously far from clear.}) 10. O-O {
[%emt 0:00:33]} b6 {[%emt 0:00:03]} 11. Be3 {[%emt 0:00:41]} (11. d5 Na5 12.
Bd3 c4 13. Bc2 exd5 14. exd5 Bb7 $11 {Svidler,P-Hou,Y Geneve 2017; probably
equalised for Black in her previous outing with the line.}) 11... Bb7 {[%emt 0:
03:12]} 12. Qe2 {[%emt 0:01:22]} cxd4 {[%emt 0:08:27]} (12... Qc7 $5 13. d5 (
13. Ba6 {is White's most obvious idea, but there is a concrete remedy:} cxd4
14. cxd4 Nb4 $1 15. Bxb7 Qxb7 $132 {and White's centre continues to come under
fire.}) 13... Na5 14. dxe6 Nxc4 15. Qxc4 fxe6 16. Qxe6+ Kh8 $44) 13. cxd4 {
[%emt 0:00:20]} Rc8 {[%emt 0:00:08]} 14. Rfd1 {[%emt 0:01:28]} Qc7 {[%emt 0:03:
49]} 15. d5 {[%emt 0:05:25]} Ne5 {[%emt 0:08:34]} (15... exd5 16. exd5 Ne5 17.
Bb3 Nxf3+ 18. Qxf3 Bd6 $132 {Navara,D-Dominguez Perez,L Saint Louis 2017}) 16.
Bb5 {[%emt 0:25:40]} (16. Nxe5 Qxe5 17. f3 $14) 16... exd5 {[%emt 0:25:16]} 17.
exd5 {[%emt 0:01:03]} Nxf3+ {[%emt 0:00:06]} (17... Rfd8 18. Rbc1 Qb8 {is
apparently still nail-biting equality}) 18. Qxf3 $14 {[%emt 0:00:17] Certainly
by contrast to Navara-Dominguez above the bishop on b5 poses Black some extra
problems, connected with Rbc1 and Bc6.} Bc5 {[%emt 0:00:22]} 19. Rbc1 {[%emt 0:
12:15]} Qe7 {[%emt 0:19:27]} 20. Bf4 {[%emt 0:16:49]} Bd6 {[%emt 0:05:55]} 21.
Bc6 {[%emt 0:00:48] That's just it. Now Black has to go into a bit of a huddle,
and Anand's technique has been his strong point in this event.} Bxf4 {[%emt 0:
07:15]} (21... Ba8 {still kept White's advantage to a minimum by making him
work for every extra pawn advance}) 22. Qxf4 {[%emt 0:00:28]} Bxc6 {[%emt 0:00:
20]} 23. dxc6 {[%emt 0:01:06]} Qc7 {[%emt 0:00:16]} 24. Rd6 $18 {[%emt 0:09:39]
The forcing continuations get nowhere, so White just improves. The obvious
follow-up is to play the queen to d5 and try for Rd7.} Rcd8 {[%emt 0:03:43]}
25. Rcd1 {[%emt 0:00:44]} h6 {[%emt 0:02:25]} 26. g3 {[%emt 0:02:09]} Rxd6 {
[%emt 0:00:05]} ({It is interesting to note the tactical point White basically
has to use if Black sits tight:} 26... Rc8 27. Qc4 Kh8 28. Qd5 Kg8 29. a4 Kh8
30. Kg2 (30. Rc1 $2 Rfd8 $14) 30... Kg8 31. h4 {Or, I suppose, just Rc1 now.}
Kh8 32. Rd4 Kg8 33. Rc4 Rfd8 34. Rd7 $1 $18) 27. Rxd6 {[%emt 0:00:14]} Rc8 {
[%emt 0:01:45]} 28. Qe5 {[%emt 0:06:56]} b5 {[%emt 0:07:42]} 29. Qd5 {[%emt 0:
00:44]} Kh7 {[%emt 0:01:41]} 30. Qe4+ {[%emt 0:02:12]} Kg8 {[%emt 0:04:24]} 31.
Rd7 {[%emt 0:00:24] Another neat tactical point, but if not this, then
something else would have worked.} Qa5 {[%emt 0:00:34]} 32. c7 {[%emt 0:00:53]}
Rf8 {[%emt 0:00:09]} 33. Qe7 {[%emt 0:00:29] Mate cannot be far away.} 1-0

[Event "Tata Steel-A 80th"]
[Site "Wijk aan Zee"]
[Date "2018.01.26"]
[Round "11"]
[White "Caruana, Fabiano"]
[Black "Giri, Anish"]
[Result "1/2-1/2"]
[ECO "D02"]
[WhiteElo "2811"]
[BlackElo "2752"]
[Annotator "Fernandez,D"]
[PlyCount "87"]
[EventDate "2018.01.13"]
[EventType "tourn"]
[EventRounds "13"]
[EventCountry "NED"]
[EventCategory "20"]
[SourceTitle "CBM 183"]
[Source "ChessBase"]
[SourceDate "2018.03.14"]
[SourceVersion "1"]
[SourceVersionDate "2018.03.14"]
[SourceQuality "1"]
[TimeControl "40/6000+30:20/3000+30:900+30"]

1. d4 {[%emt 0:00:00]} d5 {[%emt 0:00:07]} 2. Nf3 {[%emt 0:00:00]} Nf6 {
[%emt 0:00:14]} 3. Bf4 {[%emt 0:00:00]} Bf5 {[%emt 0:00:41]} 4. e3 {[%emt 0:01:
31]} e6 {[%emt 0:00:10]} 5. Nbd2 {[%emt 0:00:20]} ({For some reason Caruana
didn't feel like trying to emulate Carlsen's} 5. c4 $5) 5... Bd6 {[%emt 0:11:
22]} 6. Ne5 {[%emt 0:02:01]} (6. Bg3 {is the more 'true Londoner' move, but
after say} O-O 7. Be2 c5 8. c3 Nc6 $11 {it is immediately obvious that White
has nothing}) 6... h6 {[%emt 0:05:02]} 7. g4 $5 $146 {[%emt 0:24:36]} Bh7 {
[%emt 0:05:06]} (7... Bxe5 $5 {is fascinating:} 8. dxe5 Bxg4 9. f3 Nh5 10. fxg4
Nxf4 11. exf4 Qh4+ 12. Ke2 Qxg4+ {but it seems like White probably has an edge
with the solid} 13. Nf3 Qxf4 14. Qd2 $14 {when the piece marginally
outperforms the three pawns.}) 8. h4 {[%emt 0:00:05]} Ne4 {[%emt 0:03:23]} (
8... Nfd7 9. Nxd7 Qxd7 $132 {could eventually leave White feeling a bit
over-extended; for subtle structural reasons Black should recapture on d6 with
the pawn!}) 9. Nxe4 {[%emt 0:05:51]} Bxe4 {[%emt 0:00:09]} 10. f3 {[%emt 0:00:
05]} Bh7 {[%emt 0:00:16]} 11. Bd3 {[%emt 0:09:04]} (11. Qd2 Nd7 12. O-O-O {
might still keep things a bit fresh, as the prospect of a good bishop versus
bad bishop endgame weighs slightly on Black's mind.}) 11... Bxd3 {[%emt 0:01:
01]} 12. Qxd3 {[%emt 0:00:15]} Nd7 {[%emt 0:07:05] Solid and good for equality.
} 13. O-O-O {[%emt 0:00:29]} Bxe5 $5 {[%emt 0:09:49]} (13... Qe7 14. h5 O-O-O
$11) 14. dxe5 {[%emt 0:00:19]} Qe7 {[%emt 0:00:11]} 15. e4 {[%emt 0:09:52]}
dxe4 {[%emt 0:01:00]} (15... c6 {could be interesting, keeping open the option
of short castling, but I suspect Black rejected this due to the possibility of
c4 + Qd6 turning out to be a textbook 'incisive continuation'.}) 16. Qxe4 {
[%emt 0:00:14]} O-O-O {[%emt 0:00:05]} 17. g5 {[%emt 0:02:32]} hxg5 {[%emt 0:
16:38]} 18. Bxg5 {[%emt 0:00:16]} f6 {[%emt 0:00:12]} 19. exf6 {[%emt 0:00:19]}
Nxf6 {[%emt 0:00:11]} 20. Qe5 {[%emt 0:05:27]} Qf7 {[%emt 0:08:10]} 21. Rhe1 {
[%emt 0:05:13]} (21. b3 {might improve slightly, not giving away any tempi,
and the cat-and-mouse could continue:} b6 22. Kb2 Rhf8 23. Rxd8+ Rxd8 24. Qe2
$14) 21... Rxd1+ {[%emt 0:02:42]} 22. Rxd1 {[%emt 0:00:11]} b6 {[%emt 0:02:50]}
23. b3 {[%emt 0:08:20]} Kb8 {[%emt 0:04:07]} 24. Kb2 {[%emt 0:03:59]} Nh7 {
[%emt 0:01:59]} 25. Bf4 {[%emt 0:03:12]} (25. f4 $14 {was a logical human
continuation}) 25... Nf6 {[%emt 0:02:14]} 26. Bg5 {[%emt 0:08:44]} Nh7 {
[%emt 0:00:10]} 27. Bf4 {[%emt 0:04:25]} Nf6 {[%emt 0:00:05]} 28. Qd4 {[%emt 0:
01:26]} Kb7 {[%emt 0:12:10]} (28... Nd5 29. Be5 Qxf3 $11) 29. Be5 {[%emt 0:02:
50]} Rh5 {[%emt 0:04:11]} 30. Rg1 {[%emt 0:00:36]} Rf5 {[%emt 0:00:59]} 31. f4
{[%emt 0:00:05]} g6 {[%emt 0:01:10]} 32. Rd1 {[%emt 0:01:33]} (32. Qc4 {
was an interesting tactical idea, hinting at an overloading of the black queen,
and then} Nd5 33. Qe4 $36 {could be genuinely unpleasant}) 32... Qe7 {[%emt 0:
00:49]} 33. Qc3 $6 {[%emt 0:04:57] This loses the advantage.} Nd5 {[%emt 0:00:
53] Possibly White had thought Qg3 was good, but missed the tactical idea of ..
.Nxf4. Black has now equalised again.} 34. Qf3 {[%emt 0:04:40]} Kb8 {[%emt 0:
00:15]} 35. Qe4 {[%emt 0:01:32]} Qxh4 {[%emt 0:04:15] Now the most White can
do is take on g6, which implies a trade of pieces, and then there will be
nothing left with which to win.} 36. Rd2 {[%emt 0:00:47]} Qe7 {[%emt 0:02:39]}
37. Rh2 {[%emt 0:00:30]} Rf8 {[%emt 0:03:03]} 38. Rh6 {[%emt 0:01:00]} Rg8 {
[%emt 0:02:16]} 39. Rxg6 {[%emt 0:00:56]} Rxg6 {[%emt 0:00:14]} 40. Qxg6 {
[%emt 0:00:00]} Qd7 {[%emt 0:00:23]} 41. Qd3 {[%emt 0:00:54]} Kc8 {[%emt 0:02:
36]} 42. a4 {[%emt 0:00:30]} Nb4 {[%emt 0:05:32]} 43. Qe4 {[%emt 0:01:30]} Nc6
{[%emt 0:00:47]} 44. Bc3 {[%emt 0:00:05]} 1/2-1/2

[Event "Tata Steel-A 80th"]
[Site "Wijk aan Zee"]
[Date "2018.01.26"]
[Round "11"]
[White "Mamedyarov, Shakhriyar"]
[Black "Carlsen, Magnus"]
[Result "1/2-1/2"]
[ECO "E34"]
[WhiteElo "2804"]
[BlackElo "2834"]
[Annotator "Fernandez,D"]
[PlyCount "75"]
[EventDate "2018.01.13"]
[EventType "tourn"]
[EventRounds "13"]
[EventCountry "NED"]
[EventCategory "20"]
[SourceTitle "CBM 183"]
[Source "ChessBase"]
[SourceDate "2018.03.14"]
[SourceVersion "1"]
[SourceVersionDate "2018.03.14"]
[SourceQuality "1"]
[TimeControl "40/6000+30:20/3000+30:900+30"]

1. d4 {[%emt 0:00:00]} Nf6 {[%emt 0:00:25]} 2. c4 {[%emt 0:00:00]} e6 {[%emt 0:
00:06]} 3. Nc3 {[%emt 0:00:00]} Bb4 {[%emt 0:00:06]} 4. Qc2 {[%emt 0:00:00]} d5
{[%emt 0:00:20]} 5. cxd5 {[%emt 0:00:07]} (5. a3 Bxc3+ 6. Qxc3 {is another big
main line, e.g.} O-O 7. Nf3 dxc4 8. Qxc4 b6 9. Bg5 $11 {, which was the path
followed by Ivanchuk,V-Harikrishna,P Huaian 2017}) 5... Qxd5 {[%emt 0:00:09]}
6. e3 {[%emt 0:01:56]} (6. Nf3 Qf5 $1 $11 {has now become famous, and after
some wrangling it has become clear that only Black can actually have a
positional edge in the endgame, despite his doubled f-pawns!}) 6... c5 {
[%emt 0:01:00]} 7. Bd2 {[%emt 0:00:08]} Bxc3 {[%emt 0:00:22]} 8. Bxc3 {[%emt 0:
00:05]} cxd4 {[%emt 0:00:44]} 9. Bxd4 {[%emt 0:00:05]} Nc6 {[%emt 0:00:08]} 10.
Bc3 {[%emt 0:00:04]} (10. Bxf6 gxf6 11. Ne2 {is the initial computer
recommendation, but this really isn't that good after say} Bd7 12. a3 Qa5+ 13.
Nc3 Ne7 $11 {Dreev,A -Fedoseev,V Moscow 2014}) 10... O-O {[%emt 0:00:54]} 11.
Nf3 {[%emt 0:00:20]} Rd8 {[%emt 0:18:24] Else Rd1 is slightly annoying.} 12.
Be2 {[%emt 0:12:37]} (12. Rd1 Qxd1+ 13. Qxd1 Rxd1+ 14. Kxd1 Ne4 15. Be1 e5 $11
{is another equal position, where White's bishop pair isn't yet active enough
to give him any advantage.}) 12... Qe4 {[%emt 0:03:03]} 13. Rc1 {[%emt 0:05:05]
} Qxc2 {[%emt 0:01:48]} 14. Rxc2 {[%emt 0:00:08]} Nd5 {[%emt 0:00:07]} (14...
Bd7 15. Nd4 Ne7 $11 {could be worth considering for the future; White's bishop
pair is a lot less scary when there is an extra pair of knights on the board.})
15. Ne5 {[%emt 0:21:44]} Bd7 {[%emt 0:03:44] This is the novelty!} (15... Nxe5
16. Bxe5 b6 17. a3 f6 18. Bg3 Bb7 19. O-O Rac8 20. Rfc1 e5 21. Rxc8 Rxc8 22.
Rxc8+ Bxc8 23. Kf1 {Grachev,B-Karjakin,S Antalya 2017. This somehow led to one
of the world's best defensive players being ground down; the problem is that
White can keep trying things and never runs any risk at all.}) 16. Nxc6 {
[%emt 0:15:26]} Bxc6 {[%emt 0:00:02]} 17. Bd2 {[%emt 0:00:40]} Ne7 {[%emt 0:22:
33]} 18. f3 {[%emt 0:01:06]} Rac8 {[%emt 0:00:37]} 19. e4 {[%emt 0:02:52]} (19.
Ba5 $5 b6 20. Bb4 Nd5 21. Bd2 $14 {prevents Black from playing ... a6 and ...
Bb5.}) 19... f6 {[%emt 0:00:57]} 20. Be3 {[%emt 0:02:47]} a6 {[%emt 0:00:46]}
21. Kf2 {[%emt 0:02:19]} (21. Bc4 $5 Kf7 22. Bb3 Bb5 23. Kf2 {and we can still
talk about a White edge based on the bishop pair.}) 21... Bb5 $1 {[%emt 0:01:
00] Black has equalised again.} 22. Rhc1 {[%emt 0:07:13]} Rxc2 {[%emt 0:01:24]}
23. Rxc2 {[%emt 0:00:08]} Bxe2 {[%emt 0:00:05]} 24. Kxe2 {[%emt 0:04:18]} Nc6
$11 {[%emt 0:00:28] There is nothing really left to play for. Black can choose
between an ...e5 based plan, and a rook-exchange based plan.} 25. b4 {[%emt 0:
01:04]} Rc8 {[%emt 0:01:52]} 26. Rc5 {[%emt 0:05:57]} b5 {[%emt 0:02:19]} 27.
f4 {[%emt 0:05:40]} Kf7 {[%emt 0:00:19]} 28. a3 {[%emt 0:00:16]} Ne7 {[%emt 0:
06:52]} 29. Rxc8 {[%emt 0:00:12]} Nxc8 {[%emt 0:00:03]} 30. Bc5 Ne7 {[%emt 0:
00:00]} 31. Bxe7 {[%emt 0:01:32]} Kxe7 {[%emt 0:00:00]} 32. Kf3 {[%emt 0:01:50]
} Kd6 33. Ke3 e5 {[%emt 0:00:40]} 34. f5 {[%emt 0:04:27]} Ke7 {[%emt 0:00:07]}
35. g4 {[%emt 0:00:39]} Kf7 {[%emt 0:00:31]} 36. h4 {[%emt 0:00:12]} Kg8 {
[%emt 0:00:13]} 37. Kf3 {[%emt 0:00:13]} h6 {[%emt 0:00:18]} 38. h5 {[%emt 0:
00:18]} 1/2-1/2

[Event "Tata Steel-A 80th"]
[Site "Wijk aan Zee"]
[Date "2018.01.26"]
[Round "11"]
[White "Matlakov, Maxim"]
[Black "Svidler, Peter"]
[Result "1/2-1/2"]
[ECO "A33"]
[WhiteElo "2718"]
[BlackElo "2768"]
[PlyCount "54"]
[EventDate "2018.01.13"]
[EventType "tourn"]
[EventRounds "13"]
[EventCountry "NED"]
[EventCategory "20"]
[SourceTitle "CBM 183"]
[Source "ChessBase"]
[SourceDate "2018.03.14"]
[SourceVersion "1"]
[SourceVersionDate "2018.03.14"]
[SourceQuality "1"]
[TimeControl "40/6000+30:20/3000+30:900+30"]

1. c4 {[%emt 0:00:00]} c5 {[%emt 0:00:38]} 2. Nf3 {[%emt 0:00:18]} Nc6 {
[%emt 0:00:50]} 3. d4 {[%emt 0:03:04]} cxd4 {[%emt 0:00:21]} 4. Nxd4 {[%emt 0:
00:03]} Nf6 {[%emt 0:00:46]} 5. Nc3 {[%emt 0:00:13]} e6 {[%emt 0:00:07]} 6. a3
{[%emt 0:02:04]} Bc5 {[%emt 0:05:06]} 7. Nb3 {[%emt 0:00:45]} Bb6 {[%emt 0:01:
33]} 8. c5 {[%emt 0:01:15]} Bc7 {[%emt 0:00:06]} 9. g3 {[%emt 0:00:06]} O-O {
[%emt 0:04:14]} 10. Bg2 {[%emt 0:00:36]} b6 {[%emt 0:05:35]} 11. O-O {[%emt 0:
01:01]} Be5 {[%emt 0:14:48]} 12. a4 {[%emt 0:11:54]} bxc5 {[%emt 0:10:03]} 13.
Nxc5 {[%emt 0:00:08]} d5 {[%emt 0:00:06]} 14. e4 {[%emt 0:04:01]} Rb8 {[%emt 0:
15:19]} 15. exd5 {[%emt 0:11:27]} Nxd5 {[%emt 0:01:41]} 16. Nxd5 {[%emt 0:18:
39]} exd5 {[%emt 0:00:14]} 17. Qxd5 {[%emt 0:00:19]} Qxd5 {[%emt 0:00:22]} 18.
Bxd5 {[%emt 0:00:04]} Nd4 {[%emt 0:04:01]} 19. Be3 {[%emt 0:12:54]} Bh3 {
[%emt 0:06:12]} 20. Bg2 {[%emt 0:01:13]} Bxg2 {[%emt 0:01:01]} 21. Kxg2 {
[%emt 0:00:07]} Nc2 {[%emt 0:01:20]} 22. Nd7 {[%emt 0:10:28]} Nxe3+ {[%emt 0:
03:48]} 23. fxe3 {[%emt 0:00:15]} Rxb2+ {[%emt 0:00:03]} 24. Kf3 {[%emt 0:00:
15]} Re8 {[%emt 0:00:05]} 25. Nxe5 {[%emt 0:04:58]} Rxe5 {[%emt 0:00:10]} 26.
Rab1 {[%emt 0:00:06]} Rxb1 {[%emt 0:00:17]} 27. Rxb1 {[%emt 0:00:05]} f6 {
[%emt 0:00:44]} 1/2-1/2